Cogmind - Beta 12 @@@ ROGUE MODE // 2024.02.02 @ 20:39:15 Player: Dosh Result: Destroyed by B-75 Beast with Heavy Machine Gun Performance ------------- Evolutions (2) 1000 Regions Visited (8) 1600 Robots Destroyed (151) 755 Value Destroyed (3997) 3997 Prototype IDs (27) 540 Alien Tech Used (0) 0 Bonus (456) 456 TOTAL SCORE: 8348 Bonus ------- High Alert Combat Kills 125 Follower Combat Kills 131 Entered Garrisons 200 Cogmind --------- Core Integrity 0/550 Matter 255/300 Energy 99/100 System Corruption 0% Temperature Cool (0) Movement Core (50) Location -8/Garrison Parts ------- > --- POWER (1) -------- (None) > --- PROPULSION (3) --- (None) > --- UTILITY (5) ------ Hacking Suite > --- WEAPON (2) ------- (None) > --- INVENTORY (5) ---- Improved Sensor Array Transport Network Coupler Light Armor Plating Makeshift Hacking Suite Improved Trap Extractor (4/6 Shock) Peak State ------------ > --- POWER ------------ Micro Nuclear Core > --- PROPULSION ------- Improved Treads Armored Treads Advanced Treads > --- UTILITY ---------- Huge Storage Unit Improved Sensor Array Hardened Light Armor Plating Hardened Light Armor Plating Hacking Suite > --- WEAPON ----------- Improved EM Shotgun Assault Cannon > --- INVENTORY -------- Deuterium Engine Deuterium Engine Light Treads Light Treads Advanced Treads Cooling System Compact Battery Transport Network Coupler Makeshift Salvage Targeting Computer Light Armor Plating Medium Armor Plating Hardened Light Armor Plating Hacking Suite Makeshift Hacking Suite System Shield Long-range Tractor Beam Improved Trap Extractor PSU Rigger Improved EM Shotgun EM Pulse Cannon EM Pulse Cannon EM Pulse Cannon Heavy Assault Rifle Assault Cannon Rocket Launcher [Rating: 36] Favorites ----------- Power Deuterium Engine Engine Deuterium Engine Power Core Micro Nuclear Core Propulsion Light Treads Treads Light Treads Utility Hardened Light Armor Plating Device Improved Sensor Array Storage Huge Storage Unit Hackware Hacking Suite Protection Hardened Light Armor Plating Weapon Improved EM Shotgun Energy Gun Improved EM Shotgun Energy Cannon EM Pulse Cannon Ballistic Gun Light Assault Rifle Ballistic Cannon Improved Light Cannon Launcher Rocket Launcher Special Melee Weapon Datajack Build | -11 -10 -10 -9 -9 -9 -8 -8 -8 ------- Run | Jun Mat Min Mat Min Exi Min Mat Gar Slots Evolved 4 | . . . 2 . . . 2 . Power . | . . . . . . . . . Propulsion 1 | . . . 1 . . . . . Utility 3 | . . . 1 . . . 2 . Weapon . | . . . . . . . . . Parts Attached 87 | 6 19 7 31 . . . 12 12 Power 11 | 1 3 1 4 . . . 1 1 Engine 9 | 1 3 . 4 . . . . 1 Core 2 | . . 1 . . . . 1 . Reactor . | . . . . . . . . . Propulsion 27 | 2 7 1 11 . . . 3 3 Treads 27 | 2 7 1 11 . . . 3 3 Leg . | . . . . . . . . . Wheel . | . . . . . . . . . Hover . | . . . . . . . . . Flight . | . . . . . . . . . Utility 25 | 1 3 4 9 . . . 4 4 Device 7 | . 1 . 4 . . . 2 . Storage 4 | 1 1 2 . . . . . . Processor . | . . . . . . . . . Hackware 1 | . . . . . . . 1 . Protection 13 | . 1 2 5 . . . 1 4 Artifact . | . . . . . . . . . Weapon 24 | 2 6 1 7 . . . 4 4 Energy Gun 7 | 1 2 . 3 . . . . 1 Energy Cannon 3 | . . . . . . . 2 1 Ballistic Gun 9 | 1 4 1 2 . . . . 1 Ballistic Cannon 3 | . . . 1 . . . 1 1 Launcher 1 | . . . . . . . 1 . Special Weapon . | . . . . . . . . . Impact Weapon . | . . . . . . . . . Slashing Weapon . | . . . . . . . . . Piercing Weapon . | . . . . . . . . . Special Melee Weapon 1 | . . . 1 . . . . . Unidentified Prototypes 2 | . . . 2 . . . . . Parts Lost 28 | . 5 . 4 . . . 3 16 Power 1 | . 1 . . . . . . . Propulsion 9 | . 2 . . . . . 2 5 Utility 9 | . . . 3 . . . . 6 Weapon 9 | . 2 . 1 . . . 1 5 Highest Loss Streak 8 | . 2 . 2 . . . 2 8 To Critical Strikes 1 | . . . . . . . 1 . Average Slot Usage (%) 99 | . 98 100 99 100 100 100 99 96 Engine 8 | . 13 . 10 11 11 11 3 . Core 2 | . . 13 . . . . 5 8 Treads 30 | . 27 28 32 33 33 33 26 25 Device 5 | . 10 . 5 . . . 10 8 Storage 11 | . 14 13 11 11 11 11 9 8 Hackware 2 | . . . . . . . 8 9 Protection 16 | . 3 14 16 22 22 22 16 17 Energy Gun 7 | . 10 . 8 11 11 11 4 5 Ballistic Gun 8 | . 17 28 12 . . . . . Ballistic Cannon 5 | . . . . 11 11 11 9 8 Naked Turns . | . . . . . . . . . Heaviest Build 114 | 13 23 90 106 106 106 106 108 114 Greatest Support 65 | 40 40 40 63 63 63 63 65 64 Greatest Overweight (x) 2 | . . 2 1 1 1 1 1 1 Average Overweight (x) . | . . 1 1 1 1 1 1 . Largest Inventory Capacity 25 | 8 10 25 25 25 25 25 25 25 Average Capacity 22 | 7 9 20 25 25 25 25 25 24 Most Carried 25 | 3 10 19 25 25 25 24 25 22 Average Carried 19 | 1 7 15 22 24 23 23 23 17 Final Capacity 25 | 8 10 25 25 25 25 25 25 5 Final Carried 25 | 3 8 19 25 23 23 23 21 5 Class Distribution -------------------- 97% | Mutant Dominant Class ---------------- Mutant | -10/Materials Mutant | -10/Mines Mutant | -9/Materials Mutant | -9/Mines Mutant | -9/Exiles Mutant | -8/Mines Mutant | -8/Materials Mutant | -8/Garrison Resources | -11 -10 -10 -9 -9 -9 -8 -8 -8 ----------- Run | Jun Mat Min Mat Min Exi Min Mat Gar Matter Collected 2275 | 196 424 152 601 107 12 20 436 327 Remotely . | . . . . . . . . . Salvage Created 5229 | . 915 213 1727 169 96 85 1179 845 Parts 341 | . 69 12 122 21 5 6 67 39 Haulers Intercepted 6 | . 2 . 3 . . . 1 . Recyclers Shooed 2 | . . . 1 1 . . . . Parts Field Recycled . | . . . . . . . . . Retrieved Matter . | . . . . . . . . . Parts Self-Destructed . | . . . . . . . . . Prevented . | . . . . . . . . . Kills | -11 -10 -10 -9 -9 -9 -8 -8 -8 ------- Run | Jun Mat Min Mat Min Exi Min Mat Gar Combat Hostiles Destroyed 114 | . 20 5 34 8 . 3 25 19 Guns 67 | . 19 5 29 4 . 2 3 5 Cannons 32 | . . . . 4 . 1 15 12 AOE 14 | . 1 . 5 . . . 6 2 Classes Destroyed 13 | . 7 1 3 . . 1 . 1 Worker 7 | . 1 . 3 2 . . 1 . Builder 4 | . . . 3 . . . 1 . Tunneler 1 | . . 1 . . . . . . Hauler 6 | . 2 . 3 . . . 1 . Recycler 5 | . 1 . 2 1 . . 1 . Operator 4 | . 2 . 1 . . . 1 . Watcher 10 | . 3 . 4 . . . 3 . Swarmer 36 | . 6 . 15 8 . 2 5 . Cutter 3 | . . . . . . . . 3 Grunt 53 | . 14 5 8 . . . 12 14 Brawler 1 | . . . 1 . . . . . Sentry 19 | . . . 10 . . . 7 2 Hunter 2 | . . . . . . 1 1 . Best Kill Streak 8 | . 6 2 6 6 . 1 5 8 Combat Bots Only 8 | . 5 2 5 5 . 1 3 8 Max Kills in Single Turn 3 | . 1 1 3 1 . 1 3 2 Gunslinging . | . . . . . . . . . Exploded 3 | . 1 . 3 . . . 3 1 Melee . | . . . . . . . . . Uniques/NPCs Destroyed . | . . . . . . . . . Combat | -11 -10 -10 -9 -9 -9 -8 -8 -8 -------- Run | Jun Mat Min Mat Min Exi Min Mat Gar Damage Taken 6143 | . 1110 295 1239 195 . 75 1170 2059 Core 929 | . 166 60 109 29 . 7 72 486 Absorbed by Shields 235 | . . . 235 . . . . . Regen/Repaired (Parts) 589 | . 69 . 520 . . . . . Core Remaining (%) 57 | 100 . 9 . . . 63 . . Volleys Fired 420 | . 112 20 129 15 3 5 71 65 Largest 2 | . 2 2 2 2 2 2 2 2 Hottest 107 | . 70 40 68 84 84 84 107 107 Shots Fired 766 | . 219 41 224 29 6 9 125 113 Gun 566 | . 219 41 224 14 3 4 27 34 Cannon 199 | . . . . 15 3 5 97 79 Launcher 1 | . . . . . . . 1 . Special . | . . . . . . . . . Kinetic 502 | . 136 41 170 15 3 5 71 61 Thermal 72 | . 72 . . . . . . . Explosive 1 | . . . . . . . 1 . Electromagnetic 191 | . 11 . 54 14 3 4 53 52 Robot Hit Streak 23 | . 13 20 19 2 7 6 23 13 Robot Miss Streak 10 | . 6 3 4 10 1 3 4 3 Penetration Max . | . . . . . . . . . Secondary Targets 10 | . 7 2 1 . . . . . Max Gunslinging Chain 1 | . 1 1 1 . . . . . Shots Hit Robots 534 | . 141 35 166 13 5 5 89 80 Core Hits 250 | . 56 18 70 10 3 7 48 38 Critical Kills 1 | . . . 1 . . . . . Critical Parts Destroyed 2 | . . . 2 . . . . . Critical Strikes 12 | . 3 . 4 . . . 4 1 Burn 3 | . 3 . . . . . . . Destroy 4 | . . . 4 . . . . . Blast 3 | . . . . . . . 3 . Corrupt 2 | . . . . . . . 1 1 Melee Attacks 1 | . . . 1 . . . . . Impact . | . . . . . . . . . Slashing . | . . . . . . . . . Piercing . | . . . . . . . . . Sneak Attacks 1 | . . . 1 . . . . . Combat Hostiles . | . . . . . . . . . Follow-up Attacks . | . . . . . . . . . Damage Inflicted 9716 | 3 1579 308 2619 287 128 146 2611 2035 Guns 5179 | . 1510 294 2191 72 61 61 458 532 Cannons 3260 | . . . . 177 67 28 1668 1320 Explosions 1047 | . 35 . 379 . . . 450 183 Melee . | . . . . . . . . . Ramming 230 | 3 34 14 49 38 . 57 35 . Kinetic 4918 | . 871 294 1491 177 67 28 1087 903 Thermal 1475 | . 621 . 379 . . . 292 183 Explosive 158 | . . . . . . . 158 . Electromagnetic 2935 | . 53 . 700 72 61 61 1039 949 Impact . | . . . . . . . . . Slashing . | . . . . . . . . . Piercing . | . . . . . . . . . Highest Corruption 2 | . 2 2 . . . . . . Average Corruption 2 | . 2 2 . . . . . . Corruption Purged . | . . . . . . . . . Corruption Blocked . | . . . . . . . . . Effects 38 | . 23 15 . . . . . . Message Errors 8 | . 4 4 . . . . . . Matter Fused 8 | . 4 4 . . . . . . Heat Flow Errors 4 | . 3 1 . . . . . . Energy Discharges 6 | . 3 3 . . . . . . Parts Rejected 1 | . 1 . . . . . . . Parts Fused 1 | . 1 . . . . . . . Data Loss (minor) 3 | . 2 1 . . . . . . Data Loss (major) 1 | . 1 . . . . . . . Misfires 2 | . 1 1 . . . . . . Alerts 3 | . 2 1 . . . . . . Weapon Failures 1 | . 1 . . . . . . . Overload Shots . | . . . . . . . . . Overflow Damage 58 | . . . . 6 . . 31 21 Projectiles 44 | . . . . 6 . . 17 21 Explosions 14 | . . . . . . . 14 . Melee . | . . . . . . . . . Knockbacks 15 | . . 1 . 2 . . 4 8 Impact 1 | . . 1 . . . . . . Kinetic 13 | . . . . 2 . . 4 7 Secondary 1 | . . . . . . . . 1 Self-Inflicted Damage 289 | . . . 70 . . . 98 121 Shots 7 | . . . 2 . . . 2 3 Rammed 35 | 1 6 3 7 5 . 8 5 . Targets Rammed 40 | 1 6 4 8 6 . 8 7 . Kicked . | . . . . . . . . . Crushed 5 | . . 1 1 1 . . 2 . Highest Temperature 441 | . 265 157 186 441 144 96 403 60 Average Temperature 72 | . 66 39 41 169 73 36 98 15 Received Heat Transfer 2288 | . 513 186 326 . . . 540 723 Effects 5 | . . . . 4 . . 1 . Shutdowns 2 | . . . . 1 . . 1 . Interference 3 | . . . . 3 . . . . Siege Activations . | . . . . . . . . . Robots Corrupted 1 | . . . . . . . 1 . Combat Hostiles 1 | . . . . . . . 1 . Parts Fried 3 | . . . 1 . . . . 2 Impact Corruptions . | . . . . . . . . . Robots Melted . | . . . . . . . . . Combat Hostiles . | . . . . . . . . . Parts Melted 3 | . 2 . . . . . . 1 Heat Transferred 3025 | . 1900 . 600 . . . 350 175 Parts Sabotaged . | . . . . . . . . . Parts Stolen . | . . . . . . . . . Parts Stripped . | . . . . . . . . . Power Chain Reactions 14 | . 1 . 6 . . . 4 3 Missiles Intercepted . | . . . . . . . . . Alert | -11 -10 -10 -9 -9 -9 -8 -8 -8 ------- Run | Jun Mat Min Mat Min Exi Min Mat Gar Peak Influence 669 | . 205 130 428 356 . 55 364 669 Initial 236 | . . 49 6 154 . . . 236 Average 173 | . 104 60 253 121 . 20 138 539 Maximum Alert Level 2 | . 1 . 2 1 . . 1 2 Low Security (%) 66 | 100 91 100 35 87 . 100 74 . Level 1 26 | . 8 . 60 12 . . 25 19 Level 2 6 | . . . 3 . . . . 80 Level 3 . | . . . . . . . . . Level 4 . | . . . . . . . . . Level 5 . | . . . . . . . . . High Security . | . . . . . . . . . Max Security . | . . . . . . . . . Squads Dispatched 13 | . 5 1 4 . . . 3 . Investigation 4 | . 3 . 1 . . . . . Extermination . | . . . . . . . . . Reinforcement 7 | . 2 . 3 . . . 2 . Assault 1 | . . 1 . . . . . . Garrison 1 | . . . . . . . 1 . Intercept . | . . . . . . . . . Searches Triggered . | . . . . . . . . . Construction Impeded 1 | . . . 1 . . . . . Haulers Reinforced . | . . . . . . . . . Active Scanning Responses . | . . . . . . . . . Cargo Convoy Interrupts . | . . . . . . . . . Stealth | -11 -10 -10 -9 -9 -9 -8 -8 -8 --------- Run | Jun Mat Min Mat Min Exi Min Mat Gar Distress Signals 12 | . 1 . 4 . . 1 6 . Communications Jammed . | . . . . . . . . . Distress Signals . | . . . . . . . . . Times Spotted 181 | . 37 9 51 14 . 3 44 23 Peak Tracking Total 7 | . 4 4 7 3 . 1 6 6 Tactical Retreats 8 | . . . 2 1 . . 3 2 Traps | -11 -10 -10 -9 -9 -9 -8 -8 -8 ------- Run | Jun Mat Min Mat Min Exi Min Mat Gar Traps Triggered 5 | . 4 . . . . . . 1 Indirectly . | . . . . . . . . . Trap Hack Attempts 34 | . . . 34 . . . . . Triggered . | . . . . . . . . . Disarmed . | . . . . . . . . . Reprogrammed 4 | . . . 4 . . . . . Reused . | . . . . . . . . . Traps Extracted 4 | . . . 4 . . . . . Installed . | . . . . . . . . . Triggered 1 | . . . . . . . . 1 Most Traps Carried 4 | . . . 4 4 4 4 4 4 Machines | -11 -10 -10 -9 -9 -9 -8 -8 -8 ---------- Run | Jun Mat Min Mat Min Exi Min Mat Gar Machines Disabled 6 | . 1 . 1 . . . 3 1 Max in Single Turn 1 | . 1 . 1 . . . 1 1 Machines Repaired . | . . . . . . . . . Machines Sabotaged . | . . . . . . . . . Overloaded Fab Kills . | . . . . . . . . . Hacking | -11 -10 -10 -9 -9 -9 -8 -8 -8 --------- Run | Jun Mat Min Mat Min Exi Min Mat Gar Machines Accessed 32 | . 9 1 11 . 2 . 9 . Terminals 21 | . 6 . 7 . . . 8 . Fabricators . | . . . . . . . . . Repair Stations 3 | . 1 . 2 . . . . . Recycling Units 3 | . 2 . 1 . . . . . Scanalyzers 1 | . . . 1 . . . . . Garrison Access 1 | . . . . . . . 1 . Total Hacks 100 | . 23 1 43 . 5 . 28 . Successful 64 | . 16 1 26 . 5 . 16 . Failed 35 | . 7 . 16 . . . 12 . Catastrophic 3 | . 1 . 1 . . . 1 . Database Lockouts 1 | . . . 1 . . . . . Manual 62 | . 17 . 19 . 1 . 25 . Terminals 69 | . 19 . 23 . . . 27 . Fabricators . | . . . . . . . . . Repair Stations 17 | . 2 . 15 . . . . . Recycling Units 5 | . 2 . 3 . . . . . Scanalyzers 2 | . . . 2 . . . . . Garrison Access 1 | . . . . . . . 1 . Terminal Hacks 26 | . 8 1 6 . 5 . 6 . Record 4 | . . . . . 4 . . . Robot Analysis 9 | . 6 . 1 . . . 2 . Prototype ID Bank 1 | . . . 1 . . . . . Open Door 1 | . . 1 . . . . . . Terminal Index 2 | . . . 1 . . . 1 . Recycling Unit Index 1 | . . . 1 . . . . . Unreport Threat 1 | . . . 1 . . . . . Locate Traps 3 | . 1 . . . . . 2 . Hauler Manifests 3 | . 1 . 1 . . . 1 . EX-Prototype ID Bank 1 | . . . . . 1 . . . Fabricator Hacks . | . . . . . . . . . Repair Station Hacks 14 | . 2 . 12 . . . . . Scan Component 7 | . 1 . 6 . . . . . Repair 7 | . 1 . 6 . . . . . Recycling Unit Hacks 1 | . . . 1 . . . . . Retrieve Components 1 | . . . 1 . . . . . Scanalyzer 2 | . . . 2 . . . . . Insert Component 1 | . . . 1 . . . . . Analyze 1 | . . . 1 . . . . . Garrison Access Hacks 1 | . . . . . . . 1 . Unlock Access 1 | . . . . . . . 1 . Unauthorized Hacks 20 | . 6 . 5 . . . 9 . Terminals 17 | . 4 . 4 . . . 9 . Assimilate 5 | . . . . . . . 5 . Botnet 8 | . 2 . 3 . . . 3 . Operators 4 | . 2 . 1 . . . 1 . Fabricators . | . . . . . . . . . Repair Stations . | . . . . . . . . . Recycling Units 3 | . 2 . 1 . . . . . Reject 1 | . . . 1 . . . . . Tunnel 2 | . 2 . . . . . . . Scanalyzers . | . . . . . . . . . Garrison Access . | . . . . . . . . . Data Cores Recovered 1 | . . . . . . . 1 . Used . | . . . . . . . . . Hacking Detections 23 | . 5 . 10 . . . 8 . Full Trace Events 1 | . . . 1 . . . . . Feedback Events . | . . . . . . . . . Feedback Blocked . | . . . . . . . . . Robot Schematics Acquired . | . . . . . . . . . Robots Built . | . . . . . . . . . Authchips . | . . . . . . . . . Time . | . . . . . . . . . Total Robot Build Rating . | . . . . . . . . . Part Schematics Acquired 1 | . . . 1 . . . . . Parts Built . | . . . . . . . . . Authchips . | . . . . . . . . . Time . | . . . . . . . . . Total Part Build Rating . | . . . . . . . . . Parts Repaired 7 | . 1 . 6 . . . . . Time 225 | . 26 . 199 . . . . . Parts Recycled . | . . . . . . . . . Recycled Matter . | . . . . . . . . . Retrieved Matter . | . . . . . . . . . Retrieved Components 9 | . . . 9 . . . . . Parts Scanalyzed 1 | . . . 1 . . . . . Part Schematics Acquired 1 | . . . 1 . . . . . Parts Damaged . | . . . . . . . . . Bothacking | -11 -10 -10 -9 -9 -9 -8 -8 -8 ------------ Run | Jun Mat Min Mat Min Exi Min Mat Gar Used RIF Installer . | . . . . . . . . . Robots Hacked . | . . . . . . . . . Non-combat . | . . . . . . . . . Combat . | . . . . . . . . . Robot Hacks Applied . | . . . . . . . . . Relay Couplers Released . | . . . . . . . . . Fabnet Peak Effective % . | . . . . . . . . . Robots Rewired 4 | . . . . . 4 . . . Allies Hacked . | . . . . . . . . . Hacks Repelled . | . . . . . . . . . Allies | -11 -10 -10 -9 -9 -9 -8 -8 -8 -------- Run | Jun Mat Min Mat Min Exi Min Mat Gar Total Allies 9 | . . 1 . 3 4 . 1 . Largest Group 4 | . . 1 . 3 4 4 1 . Highest-Rated Group 40 | . . 31 . 40 32 32 10 . Highest-Rated Ally 31 | . . 31 . 16 8 8 10 . Total Orders . | . . . . . . . . . Ally Attacks 48 | . . 14 . 19 . 15 . . Total Damage 540 | . . 269 . 193 . 78 . . Kills 13 | . . 4 . 7 . 2 . . Allies Corrupted . | . . . . . . . . . Allies Melted . | . . . . . . . . . Intel | -11 -10 -10 -9 -9 -9 -8 -8 -8 ------- Run | Jun Mat Min Mat Min Exi Min Mat Gar Robot Analysis Total 9 | . 6 . 1 . . . 2 . Derelict Logs Recovered 5 | . . 3 . 2 . . . . Drone Launches . | . . . . . . . . . Drone Recoveries . | . . . . . . . . . Exploration | -11 -10 -10 -9 -9 -9 -8 -8 -8 ------------- Run | Jun Mat Min Mat Min Exi Min Mat Gar Turns Passed 14628 | 101 1903 1315 4149 1452 1083 1256 2487 882 Spaces Moved 5483 | 61 839 447 1416 570 423 499 904 324 Core 52 | 8 . . . . . . . 44 Treads 5431 | 53 839 447 1416 570 423 499 904 280 Legs . | . . . . . . . . . Wheels . | . . . . . . . . . Hover . | . . . . . . . . . Flight . | . . . . . . . . . Fastest Speed 50 | 50 160 160 243 243 243 243 235 50 Average Speed 227 | 145 160 256 243 243 243 243 239 209 Slowest Speed 325 | 160 160 325 243 243 243 243 243 235 Overloaded Moves . | . . . . . . . . . Propulsion Burnouts . | . . . . . . . . . Robots Hopped . | . . . . . . . . . Cave-ins Triggered . | . . . . . . . . . Exploration Rate (%) 76 | 6 90 87 95 92 90 99 79 46 Regions Visited 8 Branch Regions 4 Pre-discovered Areas 4 | . 2 1 . . 1 . . . Known Exits Taken 1 | . . . . . . . 1 . Unknown Exits Taken 7 | 1 1 1 1 1 1 1 . . Scrap Searched 3 | . . 1 . 1 . 1 . . Spaces Dug 4 | . . . . . . . 4 . Terrain Destroyed 83 | . 2 . 15 1 . . 41 24 Melee . | . . . . . . . . . Projectile 14 | . . . . 1 . . 13 . AOE 69 | . 2 . 15 . . . 28 24 Terrain Rammed . | . . . . . . . . . Walls Destroyed . | . . . . . . . . . Machines Disabled . | . . . . . . . . . Actions | -11 -10 -10 -9 -9 -9 -8 -8 -8 --------- Run | Jun Mat Min Mat Min Exi Min Mat Gar Total 6857 | 70 1195 578 1906 603 475 523 1093 414 Wait 657 | . 210 77 252 9 . 10 94 5 Move 5477 | 61 838 446 1415 569 422 498 904 324 Hop . | . . . . . . . . . Pick Up 57 | 3 6 22 15 1 3 1 2 4 Fast Attach 22 | 6 7 1 8 . . . . . Attach 26 | . 5 . 6 . . . 5 10 Detach 6 | . 1 . 4 . . . . 1 Swap 39 | . 7 6 17 . . . 7 2 Drop 33 | . 3 2 17 3 3 1 3 1 Fire 420 | . 112 20 129 15 3 5 71 65 Melee 1 | . . . 1 . . . . . Ram . | . . . . . . . . . Kick . | . . . . . . . . . Crush 39 | . 6 4 8 6 . 8 7 . Escape Stasis 2 | . . . . . . . . 2 Rewire 44 | . . . . . 44 . . . Trap 34 | . . . 34 . . . . . Miscellaneous . | . . . . . . . . . Route ------- -11/Junkyard -10/Materials (discovered 4 exits: *Mat x2 / *Min x2) -10/Mines -9/Materials (discovered 4 exits: *Mat x3 / [*Min]) -9/Mines (discovered 3 exits: *Mat x2 / *Exi) -9/Exiles -8/Mines (discovered 2 exits: *Mat x2) -8/Materials (discovered 4 exits: *Fac x3 / Gar) -8/Garrison (discovered 1 exit: *Fac) History --------- Turn | Location | Event 2 | -11/Junkyard | Discovered new exit (range 16) 102 | -11/Junkyard | Entered Materials 305 | -10/Materials | Build established: Mutant 663 | -10/Materials | Discovered new exit (range 10) 795 | -10/Materials | Discovered new exit (range 7) 883 | -10/Materials | Discovered new exit (range 10) 945 | -10/Materials | Discovered new exit (range 15) 1495 | -10/Materials | Core integrity fell below 50% 1957 | -10/Materials | Repaired Lgt. Treads 2005 | -10/Materials | Entered Mines 2208 | -10/Mines | Learned Materials trap positions 2264 | -10/Mines | Learned location of Mines (-9) 2326 | -10/Mines | Met a Derelict who couldn't figure out how to use a Trap Extractor 2649 | -10/Mines | Learned 2 Materials zone layouts 2736 | -10/Mines | Discovered new exit (range 8) 2792 | -10/Mines | Met a Derelict testing a Signal Generator 3064 | -10/Mines | Core integrity fell below 20% 3320 | -10/Mines | Entered Materials 3320 | -9/Materials | Evolved 2 slots: Propulsion x1, Utility x1 3322 | -9/Materials | Loaded intel: 10 trap records 3368 | -9/Materials | Repaired Lgt. Treads 3789 | -9/Materials | Discovered new exit (range 3) 4174 | -9/Materials | Central database locked down 5071 | -9/Materials | Repaired Arm. Treads 5177 | -9/Materials | Discovered new exit (range 5) 5939 | -9/Materials | Repaired Imp. EM Shotgun 5972 | -9/Materials | Repaired Hrd. Light Armor Plating 6000 | -9/Materials | Repaired Lgt. Treads 6027 | -9/Materials | Repaired Lgt. Treads 7176 | -9/Materials | Discovered new exit (range 9) 7457 | -9/Materials | Discovered new exit (range 6) 7469 | -9/Materials | Entered Mines 7647 | -9/Mines | Assisted by bots powering up and referring to "LRC-V3" 7810 | -9/Mines | Learned 8 Materials zone layouts 7839 | -9/Mines | Discovered new exit (range 9) 8245 | -9/Mines | Received a Rocket Launcher from a helpful Derelict 8521 | -9/Mines | Learned Materials emergency access door positions 8690 | -9/Mines | Discovered new exit (range 7) 8710 | -9/Mines | Deemed a non-threat by the Exiles lab entrance 8710 | -9/Mines | Discovered new exit (range 5) 8802 | -9/Mines | Found a hidden stash of uninstalled traps 8921 | -9/Mines | Entered Exiles 8921 | -9/Exiles | Found Exiles lab destroyed 9213 | -9/Exiles | Opened EX-Vault 9227 | -9/Exiles | Found PSU Rigger 9362 | -9/Exiles | Learned location of Zion (-7) 9973 | -9/Exiles | Discovered new exit (range 14) 10004 | -9/Exiles | Entered Mines 10004 | -8/Mines | Accompanied by 4 allies 10080 | -8/Mines | Discovered new exit (range 5) 10260 | -8/Mines | Build established: Commander-Mutant 10697 | -8/Mines | Build established: Mutant 10808 | -8/Mines | Discovered new exit (range 6) 11260 | -8/Mines | Entered Materials 11260 | -8/Materials | Evolved 2 slots: Utility x2 11261 | -8/Materials | Identified exit to Factory 12518 | -8/Materials | Discovered exit to Factory (range 16) 13693 | -8/Materials | Discovered exit to Factory (range 10) 13723 | -8/Materials | Garrison activated, responded to threat 13747 | -8/Materials | Identified exit to Garrison 13747 | -8/Materials | Entered Garrison 13820 | -8/Garrison | Triggered checkpoint 13878 | -8/Garrison | Triggered checkpoint 13953 | -8/Garrison | Destroyed 8 combat bots 14059 | -8/Garrison | Lost 6 parts (1n2u3w) 14166 | -8/Garrison | Triggered checkpoint 14300 | -8/Garrison | Discovered exit to Factory (range 12) 14573 | -8/Garrison | Spotted B-75 Beast 14576 | -8/Garrison | Spotted B-75 Beast 14588 | -8/Garrison | Core integrity fell below 50% 14607 | -8/Garrison | Core integrity fell below 20% 14629 | -8/Garrison | Destroyed by B-75 Beast with Heavy Machine Gun Last Messages --------------- 14488_ Field strength at 70. 14491_ Field strength at 40. 14492_ Field strength at 10. 14493_ Stasis field depleted. 14500_ Acquired Imp. Light Armor Plating. 14579_ B-75 Beast springs to life. 14580_ Imp. EM Shotgun destroyed. 14580_ Hrd. Light Armor Plating destroyed. 14580_ Lgt. Treads destroyed. 14584_ Mic. Nuclear Core blasted off. 14587_ EM Pulse Cannon blasted off. 14593_ B-75 Beast misfires. 14603_ B-75 Beast springs to life. 14603_ Hrd. Light Armor Plating destroyed. 14603_ Adv. Treads destroyed. 14606_ Assault Cannon destroyed. 14606_ Knocked back. 14606_ Cooling System destroyed. 14607_ Dropped Huge Storage Unit. 14608_ Acquired 5 matter. Map ----- +----------------------------------------------------+ | ?????????????????????????????????????????? | | ?????????????????????????????????????????? | | ?????????????????????????????????????????? | | ?????????????????????????????????????????? | | ?????????????????????????????????????????? | | ?????????????????????????????????????????? | | ?????????????????????????????????????????? | | ?????????????????????????????????????????? | | ?????????????????????????????????????????? | | ?????????????????????????????????????????? | | ?????????????????????????????????????????? | | ?????????????????????????????????????????? | | ?????????????????????????????????????????? | | ?????????????????????????????????????????? | | ?????????????????????????????????????????? | | ?????????????????????????????????????????? | | ?????????????????????????????????????????? | | ?????????????????????????????????????????? | | ##???????????????????????????????????????? | | #???????????????????????????????????????? | | #???????????????????????????????????????? | | #???????????????????###?????????????????? | | " ??????????????????# ?????????????????? | | ##???????????????????# ????????????????? | | ##############??????###;;#######?????????? | | #??????#! @% #?????????? | | ########*! %% #?????????? | | #### ###### !! !*+]* #?????????? | | ???# #????# !!!*%;%] #?????????? | | ???# #????# ########BB% #?????????? | | ???# #????# #??????#BB #?????????? | | #### ####?# #??????# #?????????? | | #!!# #!!#?# #??????#BB #?????????? | | #!!# #!!#?# ########BB #?????????? | | # + + #?# ; #?????????? | | #! # #!!#?# ; #?????????? | | # # #!!#?# ######## #?????????? | | #### ####?# #??????# #?????????? | | ???# #????# #??????############?????????? | | ???# #????# #???????????????????????????? | | ???# #????# #???????????????????????????? | | ???# #????# #???????????????????????????? | | #### #########???????????????????????????? | | ??????????????????????? | | ??????????????????????? | | ??????????????????????? | | ##################???????????????????????? | | ?????????????????????????????????????????? | | ?????????????????????????????????????????? | | ?????????????????????????????????????????? | +----------------------------------------------------+ Best States ------------- Heat Dissipation 53 Energy Generation 15 Energy Capacity 275 Matter Stores 300 Matter Capacity 300 Sight Range 16 Robot Scan Range 15 Terrain Scan Density 10 Armor Coverage 450 Evasion (%) 50 Recoil Reduction 3 Offensive Hacking 10 Trap Extractor Capacity 6 Item Schematics ----------------- Transport Network Coupler | -9/Materials | Scanalyzed Robot Schematics ------------------ None Fabricated ------------ Nothing Alien Tech Used ----------------- None Achievements -------------- None Challenges ------------ None Game ------ Seed HypercooledRiotInitializer Manual? 0 Play Time 00:55:13 Cumulative 157.1 hours Start 2024.02.02 @ 18:35:59 End 2024.02.02 @ 20:39:15 Sessions 1 Manual Loads 0 Difficulty Rogue Special Mode None Game No. 144 Rogue 144 Adventurer 0 Explorer 0 Win Type - Total 2 Types 2/0/0/0/0/0/0/0/0 Lore% 59 Gallery% 67 Achievement% 58 Wizard Run 0 Options --------- ASCII 0 Keyboard 1 Movement Numpad Keybinds 0 Fullscreen 2 Font 18/SmallcapsGlow Map View 76x50 Tactical HUD 1 Map Filters NONE Filters NONE Steam 1 RUN: 0192cb95-5009-4bba-a57d-0dd08f130c28